bitfinex/quotes_SOLUSD_20260124
["timestamp","ask_amount","ask_price","bid_price","bid_amount"]
[1769269132786,0.73514681,127.11,127.07,0.26576289]
[1769269133085,0.73514681,127.11,127.07,2.38960253]
[1769269134089,0.73514681,127.11,127.07,0.26576289]
[1769269134266,0.73514681,127.11,127.07,2.12383964]
[1769269134585,0.73514681,127.11,127.08,2.88960253]
[1769269140796,0.73514681,127.11,127.08,0.76576289]
[1769269142090,0.73514681,127.1,127.03,7.87208784]
[1769269142278,0.73514681,127.09,127.05,0.76576289]
[1769269142788,2.85898645,127.09,127.05,0.76576289]
[1769269142990,0.75964448,127.08,127.05,0.76576289]
[1769269143294,2.12383964,127.09,127.05,0.76576289]
[1769269143590,2.88348412,127.09,127.05,0.76576289]
[1769269144278,2.88348412,127.09,127.08,300.0]
[1769269150003,2.88348412,127.09,127.08,138.49616627]
[1769269150180,2.88348412,127.09,127.08,129.91178563]
[1769269150600,2.88348412,127.09,127.08,126.20833177]
[1769269151002,2.88348412,127.09,127.08,13.5764755]
[1769269152003,2.88348412,127.09,127.06,0.84492947]
[1769269157007,2.88227072,127.09,127.06,0.84492947]
[1769269164411,0.06754613,127.08,127.06,0.84492947]
[1769269164713,0.06754613,127.07,127.03,0.84492947]
[1769269165211,2.19017237,127.07,127.03,0.84492947]
[1769269168516,2.12262624,127.06,127.03,0.84492947]
[1769269168908,0.06754613,127.07,127.03,0.84492947]
[1769269168909,2.19017237,127.07,127.03,0.84492947]
[1769269169418,2.12262624,127.06,127.03,0.84492947]
[1769269171617,2.21791836,127.06,127.03,0.84492947]
[1769269175617,0.09529212,127.06,127.03,0.84492947]
[1769269175817,2.21791836,127.06,127.03,0.84492947]
[1769269177728,2.12262624,127.05,127.03,0.84492947]
[1769269178719,2.12262624,127.06,127.03,0.84492947]
[1769269181422,2.25720622,127.06,127.03,0.84492947]
[1769269201862,2.12262624,127.05,127.03,0.84492947]
[1769269202532,2.25720622,127.06,127.03,0.84492947]
[1769269210953,2.12262624,127.05,127.03,0.84492947]
[1769269218859,2.12381981,127.05,127.03,0.84492947]
[1769269220157,2.36786615,127.05,127.0,0.92990041]
[1769269220351,2.12381981,127.03,127.0,0.92990041]
[1769269220549,2.12381981,127.02,127.0,0.92990041]
[1769269220752,2.12381981,127.03,127.0,0.92990041]
[1769269222242,2.12381981,127.02,127.0,0.92990041]
[1769269223360,2.37403954,127.02,126.97,2.32381981]
[1769269223567,2.12381981,127.01,126.99,0.92990041]
[1769269226968,2.38194738,127.01,126.98,0.92990041]
[1769269227353,2.38194738,127.0,126.97,1.12990041]
[1769269227652,2.12381981,126.99,126.97,1.12990041]
[1769269228045,2.38194738,127.0,126.97,1.12990041]
[1769269228443,2.12381981,126.99,126.97,1.12990041]
[1769269230254,2.38194738,127.0,126.97,1.12990041]
[1769269230664,2.12381981,126.99,126.97,1.12990041]
[1769269232375,2.38194738,127.0,126.97,1.12990041]
[1769269234556,2.12381981,126.99,126.97,1.12990041]
[1769269235178,0.27461926,127.0,126.97,1.12990041]
[1769269235377,2.12381981,126.99,126.97,1.12990041]
[1769269239880,2.39843907,127.0,126.97,1.12990041]
[1769269241391,0.27461926,127.0,126.97,1.12990041]
[1769269241557,2.39843907,127.0,126.97,1.12990041]
[1769269242175,0.28632765,127.02,126.97,1.12990041]
[1769269242377,2.41014746,127.02,126.97,1.12990041]
[1769269242575,0.28632765,127.01,126.97,1.12990041]
[1769269244288,2.41014746,127.01,126.97,1.12990041]
[1769269246390,2.41642812,127.0,126.97,1.12990041]
[1769269246799,2.41642812,126.99,126.97,1.12990041]
[1769269246994,2.41642812,126.99,126.97,0.2]
[1769269247597,2.41642812,126.99,126.97,1.15892239]
[1769269247896,2.41642812,126.99,126.96,0.95892239]
[1769269247897,2.12381981,126.98,126.96,0.95892239]
[1769269248095,2.12381981,126.97,126.96,0.95892239]
[1769269248694,2.12381981,126.97,126.95,0.95892239]
[1769269249593,2.12381981,126.98,126.95,0.95892239]
[1769269249805,2.42095824,126.99,126.95,0.95892239]
[1769269251083,2.12381981,126.98,126.95,0.95892239]
[1769269252701,2.42095824,126.99,126.95,0.95892239]
[1769269254314,107.92701465,127.0,126.95,0.95892239]
[1769269254598,110.05083446,127.0,126.95,0.95892239]
[1769269254798,2.12381981,126.98,126.95,0.95892239]
[1769269256200,2.41680331,126.99,126.95,0.95892239]
[1769269257303,2.12381981,126.99,126.95,0.95892239]
[1769269257498,107.92463648,127.0,126.95,0.95892239]
[1769269257798,2.12381981,126.99,126.95,0.95892239]
[1769269261088,104.4137624,127.0,126.96,0.95892239]
[1769269261985,102.28994259,127.0,126.96,0.95892239]
[1769269263390,102.28994259,127.0,126.97,0.95151437]
[1769269264507,99.32818053,127.0,126.98,0.70260442]
[1769269264722,99.32818053,127.0,126.97,2.12381981]
[1769269264723,98.62557561,127.0,126.97,2.12381981]
[1769269267010,0.96642259,127.02,126.98,0.02285566]
[1769269267413,0.96642259,127.02,126.98,2.14667547]
[1769269267595,99.61282963,127.03,127.0,0.02285566]
[1769269272318,98.62557561,127.03,127.01,0.06625155]
[1769269272498,0.98725402,127.04,127.01,0.06625155]
[1769269276221,0.98725402,127.03,127.0,0.09356554]
[1769269276712,3.11107383,127.03,127.0,0.09356554]
[1769269276918,0.98725402,127.02,127.0,0.09356554]
[1769269277313,0.98725402,127.02,126.99,0.10020108]
[1769269282026,0.98725402,127.02,126.99,2.22430034]
[1769269283924,0.98725402,127.02,127.0,2.26868126]
[1769269284114,0.98725402,127.03,127.01,2.12409926]
[1769269285832,0.98725402,127.03,126.98,8.02574924]
[1769269286017,0.98725402,127.03,126.99,2.12409926]
[1769269286506,0.98725402,127.03,126.99,2.28072488]
[1769269286916,0.98725402,127.03,127.0,2.28072488]
[1769269290428,0.98725402,127.03,127.01,2.12409926]
[1769269293035,0.98725402,127.03,127.0,2.28072488]
[1769269304113,0.98725402,127.03,126.99,8.13265377]
[1769269304444,0.98725402,127.03,126.99,10.25675303]
[1769269308551,0.98725402,127.03,127.0,2.12409926]
[1769269314053,0.98725402,127.03,126.99,10.25675303]
[1769269316753,0.98725402,127.03,126.99,8.13265377]
[1769269316952,0.98725402,127.03,126.99,10.25675303]
[1769269317342,0.98725402,127.03,126.99,2.12409926]
[1769269317854,0.98725402,127.03,126.99,2.43114664]
[1769269319658,0.98725402,127.03,126.99,2.12409926]
[1769269320945,0.98725402,127.03,126.99,2.44024265]
[1769269321882,0.98725402,127.03,126.99,0.31614339]
[1769269322039,0.98725402,127.03,126.98,10.31823689]
[1769269322941,0.98725402,127.03,126.98,10.32407582]
[1769269323136,1.05934208,127.02,126.98,0.32780193]
[1769269323360,2.12409926,127.03,126.95,2.45190119]
[1769269323361,2.12409926,127.0,126.95,2.45190119]
[1769269323665,1.05934208,126.99,126.95,0.32780193]
[1769269323863,1.05934208,126.99,126.95,2.45190119]
[1769269324161,1.05934208,126.99,126.95,0.32780193]
[1769269324958,1.05934208,126.98,126.95,0.32780193]
[1769269325357,1.05934208,126.98,126.94,8.41097635]
[1769269326362,1.05934208,126.98,126.94,10.53507561]
[1769269328948,1.05934208,126.98,126.94,8.41097635]
[1769269331071,1.05934208,126.98,126.94,0.2]
[1769269331450,1.11280287,126.97,126.94,0.2]
[1769269333764,1.11280287,126.96,126.94,0.2]
[1769269336869,3.23690213,126.96,126.94,0.2]
[1769269338470,1.11280287,126.96,126.94,0.2]
[1769269338864,3.23690213,126.96,126.94,0.2]
[1769269342974,3.23918147,126.96,126.94,0.2]
[1769269350680,2.1263786,126.96,126.94,0.2]
[1769269350887,3.23918147,126.98,126.95,0.39601159]
[1769269351067,1.11280287,126.98,126.95,8.27296864]
[1769269353486,101.85394302,127.0,126.96,0.40405868]
[1769269353693,1.10198881,127.0,126.97,0.40405868]
[1769269359795,1.10198881,127.0,126.97,2.53043728]
[1769269361488,1.10198881,127.0,126.97,0.40405868]
[1769269361690,1.10198881,127.01,126.98,0.41907172]
[1769269362287,1.10198881,127.01,126.98,8.29429059]
[1769269363381,1.10198881,127.02,126.99,0.42260294]
[1769269367293,1.10198881,127.02,126.99,7.87454985]
[1769269367608,1.10198881,127.02,127.0,0.42943281]
[1769269367775,3.22836741,127.03,127.0,0.42943281]
[1769269368097,1.10198881,127.03,127.0,0.42943281]
[1769269369192,3.22836741,127.02,126.99,0.43272402]
[1769269369694,1.10198881,127.01,126.99,0.43272402]
[1769269370069,1.10198881,127.01,126.98,8.30779192]
[1769269372807,1.10198881,127.0,126.97,8.31325389]
[1769269382903,1.11483894,126.99,126.96,0.45383727]
[1769269383196,1.11483894,126.98,126.96,0.45383727]
[1769269383402,1.11483894,126.98,126.95,8.33204786]
[1769269383595,1.11483894,126.97,126.94,8.53274343]
[1769269384107,3.24121754,126.97,126.94,8.53274343]
[1769269388011,1.11483894,126.97,126.94,8.53274343]
[1769269397398,1.13444164,126.99,126.95,0.47417967]
[1769269398316,3.26082024,126.99,126.95,0.47417967]
[1769269399117,1.13444164,126.98,126.95,0.47417967]
[1769269402922,1.13444164,126.98,126.95,8.35079987]
[1769269414526,1.13444164,126.98,126.96,0.49296231]
[1769269414929,1.13444164,126.98,126.95,8.36958251]
[1769269416717,1.13444164,126.98,126.95,7.8766202]
[1769269416918,1.13444164,126.98,126.96,0.49481384]
[1769269417224,1.13444164,126.98,126.96,8.37128014]
[1769269418833,1.13444164,126.98,126.95,8.37375439]
[1769269423337,1.13444164,126.98,126.95,10.4993113]
[1769269426030,1.13444164,126.98,126.96,10.00171992]
[1769269426239,1.13444164,126.98,126.96,7.87616301]
[1769269432739,1.13444164,126.98,126.96,10.00171992]
[1769269440530,1.13444164,126.98,126.96,7.87616301]
[1769269440729,1.13444164,126.98,126.95,10.49904733]
[1769269440930,1.13444164,126.98,126.96,7.8764569]
[1769269442353,1.13444164,126.98,126.96,8.39181565]
[1769269450656,1.13444164,126.98,126.96,7.8764569]
[1769269453846,1.11208709,126.98,126.96,7.8764569]
[1769269480590,1.20627056,126.97,126.94,0.2]
[1769269481494,1.20627056,126.97,126.94,8.07746286]
[1769269484074,1.20627056,126.97,126.94,0.2]
[1769269484275,1.20627056,126.96,126.94,0.2]
[1769269493013,1.20627056,126.96,126.93,31.86323395]
[1769269494090,1.20627056,126.96,126.93,30.50086732]
[1769269499020,1.20627056,126.96,126.93,32.62588761]
[1769269499413,1.20627056,126.96,126.93,30.50086732]
[1769269501516,1.20627056,126.96,126.94,0.76111144]
[1769269506110,1.20627056,126.96,126.93,32.62328037]
[1769269508621,1.20627056,126.96,126.93,30.49826008]
[1769269520430,1.20627056,126.96,126.93,30.49586945]
[1769269525337,1.20627056,126.96,126.93,29.73821366]
[1769269526334,1.20627056,126.96,126.93,30.49502736]
[1769269556064,1.20212442,126.95,126.93,0.7568137]
[1769269556270,1.20212442,126.95,126.92,30.49201689]
[1769269556665,1.20212442,126.95,126.93,0.7532471]
[1769269557372,1.20212442,126.94,126.92,29.73876979]
[1769269557673,2.12599594,126.95,126.92,29.73876979]
[1769269558762,2.12599594,126.95,126.92,30.97220568]
[1769269559474,3.32812036,126.95,126.92,30.97220568]
[1769269565871,1.20212442,126.95,126.92,30.97220568]
[1769269569272,1.20212442,126.95,126.92,33.09820162]
[1769269576275,1.20212442,126.95,126.92,30.97220568]
[1769269584468,1.20212442,126.95,126.92,21.86]
[1769269585480,1.20212442,126.95,126.92,23.08504909]
[1769269590164,1.20212442,126.95,126.92,21.86]
[1769269592193,1.20212442,126.95,126.91,3.3515053]
[1769269593581,1.20212442,126.95,126.91,11.23096532]
[1769269594296,1.20212442,126.95,126.92,1.2144299]
[1769269596201,1.20212442,126.95,126.92,3.34088611]
[1769269602601,1.20212442,126.95,126.92,1.2144299]
[1769269610008,1.17410153,126.96,126.92,9.09339927]
[1769269610309,1.17410153,126.96,126.93,1.2144299]
[1769269610609,1.17410153,126.96,126.92,7.87896937]
[1769269610610,1.17410153,126.96,126.94,3.34088611]
[1769269610812,1.17410153,126.96,126.94,1.2144299]
[1769269625113,1.17410153,126.96,126.93,11.20628512]
[1769269628807,1.17410153,126.96,126.93,9.07982891]
[1769269629007,1.17410153,126.96,126.93,11.20628512]
[1769269632733,1.26908776,126.97,126.94,3.33817405]
[1769269632921,1.26908776,126.97,126.95,1.21171784]
[1769269633112,1.26908776,126.97,126.94,3.33817405]
[1769269633827,1.26908776,126.97,126.94,11.21585927]
[1769269635829,1.26908776,126.97,126.95,2.12645621]
[1769269638321,1.26908776,126.98,126.95,3.33817405]
[1769269639727,1.26908776,127.0,126.96,3.33817405]
[1769269642532,1.26908776,127.0,126.97,1.21171784]
[1769269643033,1.26908776,127.0,126.96,3.33817405]
[1769269644232,114.93582967,127.04,126.96,3.33817405]
[1769269644541,2.12645621,127.02,126.96,3.33817405]
[1769269645614,2.12645621,127.02,126.97,1.21171784]
[1769269646336,1.26908776,127.01,126.97,1.21171784]
[1769269648638,1.26908776,127.0,126.97,1.21171784]
[1769269656240,1.26908776,127.0,126.97,3.33654575]
[1769269656752,1.26908776,127.0,126.98,1.23079801]
[1769269657345,1.26908776,127.0,126.97,3.35562592]
[1769269661056,1.26908776,127.0,126.97,1.23079801]
[1769269662664,1.26908776,127.0,126.97,3.35562592]
[1769269665159,1.26908776,127.0,126.98,3.35562592]
[1769269665335,1.32774661,127.01,126.98,3.35562592]
[1769269666162,1.32774661,127.01,126.98,1.23079801]
[1769269669272,1.32774661,127.01,126.98,3.35562592]
[1769269678690,1.32774661,127.03,127.0,1.23079801]
[1769269688974,1.32774661,127.03,126.99,3.45960536]
[1769269691899,1.32774661,127.03,127.0,1.37804776]
[1769269695401,1.32774661,127.03,126.99,19.25331843]
[1769269695803,1.32774661,127.03,126.99,15.75044276]
[1769269695987,1.32774661,127.03,127.0,1.37804776]
[1769269706410,1.32774661,127.03,127.01,1.37804776]
[1769269706721,1.32774661,127.03,127.01,3.50287567]
[1769269707311,1.32774661,127.03,127.01,1.37804776]
[1769269708017,1.32774661,127.03,127.0,3.50287567]
[1769269709208,1.32774661,127.03,127.0,1.37804776]
[1769269716113,1.32774661,127.03,127.0,3.50173193]
[1769269718622,1.32774661,127.03,127.0,1.37804776]
[1769269721797,1.32774661,127.03,126.98,27.56404075]
[1769269722125,1.30796495,127.02,126.99,1.35235616]
[1769269750242,1.30796495,127.02,126.99,3.47604033]
[1769269751742,1.30796495,127.02,127.0,1.34277052]
[1769269777662,1.4257372,127.03,127.0,1.34277052]
[1769269782066,1.4257372,127.03,126.99,1.34837563]
[1769269782565,1.4257372,127.03,126.99,3.47214319]
[1769269785269,1.4257372,127.03,127.0,1.34837563]
[1769269789565,3.54950476,127.03,127.0,1.34837563]
[1769269812687,1.41030558,127.02,126.98,1.41838156]
[1769269812862,1.41030558,127.01,126.98,1.41838156]
[1769269813587,3.53407314,127.02,126.98,1.41838156]
[1769269816281,1.41030558,127.01,126.98,1.41838156]
[1769269816480,3.53407314,127.01,126.98,1.41838156]
[1769269817690,1.41030558,127.0,126.98,1.41838156]
[1769269828697,1.41030558,127.0,126.97,1.41838156]
[1769269828996,1.41030558,126.99,126.97,1.41838156]
[1769269829292,3.53407314,127.0,126.97,1.41838156]
[1769269833198,1.41030558,127.0,126.97,1.41838156]
[1769269834194,3.53407314,127.0,126.97,1.41838156]
[1769269836904,3.53547358,127.0,126.97,1.41838156]
[1769269852216,3.45516323,126.99,126.96,1.42373744]
[1769269852720,3.45516323,126.98,126.96,1.42373744]
[1769269853019,3.45516323,126.98,126.95,23.28373744]
[1769269863230,1.40368256,126.97,126.95,23.28373744]
[1769269865028,1.40368256,126.97,126.95,21.86]
[1769269865828,1.40368256,126.97,126.94,1.45123868]
[1769269866037,3.52885056,126.97,126.94,1.45123868]
[1769269866202,3.52885056,126.96,126.93,1.45123868]
[1769269866407,1.40368256,126.96,126.93,1.45123868]
[1769269868113,1.40368256,126.96,126.93,7.87835342]
[1769269868439,3.52885056,126.97,126.94,1.45123868]
[1769269869038,1.40368256,126.97,126.94,1.45123868]
[1769269872143,3.52885056,126.97,126.94,1.45123868]
[1769269883666,2.125168,126.96,126.94,1.45123868]
[1769269883873,3.52885056,126.97,126.94,1.45123868]
[1769269886375,1.40368256,126.97,126.94,1.45123868]
[1769269888260,3.58409609,126.98,126.94,1.45123868]
[1769269892475,2.125168,126.97,126.94,1.45123868]
[1769269893580,3.56681784,126.97,126.94,1.45123868]
[1769269895085,2.125168,126.97,126.94,1.45123868]
[1769269898800,2.125168,126.96,126.94,1.45123868]
[1769269898973,2.12643298,126.96,126.94,1.45123868]
[1769269901392,3.56808282,126.96,126.93,1.46865826]
[1769269902088,1.44164984,126.95,126.93,1.46865826]
[1769269902268,1.44164984,126.95,126.91,9.34817112]
[1769269902469,1.44164984,126.95,126.92,1.46865826]
[1769269902682,3.56808282,126.96,126.92,1.46865826]
[1769269904885,2.12643298,126.95,126.92,1.46865826]
[1769269905201,3.56808282,126.96,126.92,1.46865826]
[1769269909887,2.12643298,126.96,126.92,1.46865826]
[1769269911206,3.56808282,126.97,126.92,1.46865826]
[1769269913704,2.12643298,126.96,126.92,1.46865826]
[1769269916904,3.56808282,126.96,126.92,1.46865826]
[1769269918109,1.44164984,126.96,126.92,1.46865826]
[1769269918493,3.56808282,126.96,126.92,1.46865826]
[1769269924726,1.37533728,126.95,126.92,1.46865826]
[1769269925623,3.50177026,126.95,126.92,1.46865826]
[1769269925814,1.37533728,126.94,126.91,1.34245153]
[1769269926216,3.50177026,126.94,126.91,1.34245153]
[1769269927029,1.37533728,126.92,126.9,1.54245153]
[1769269927732,3.50177026,126.93,126.9,1.54245153]
[1769269928297,1.37533728,126.92,126.9,0.2]
[1769269928519,1.37533728,126.91,126.9,0.2]
[1769269932135,1.37533728,126.91,126.89,0.2]
[1769269932305,1.37533728,126.91,126.87,0.2]
[1769269932306,1.47175555,126.9,126.87,0.2]
[1769269933125,1.47175555,126.9,126.87,1.63973811]
[1769269933316,2.12643298,126.93,126.9,1.43973811]
[1769269933514,3.59818853,126.93,126.9,1.43973811]
[1769269934925,1.47175555,126.93,126.9,1.43973811]
[1769269936146,3.59818853,126.93,126.9,1.43973811]
[1769269936336,1.47175555,126.93,126.9,1.43973811]
[1769269936536,1.47175555,126.92,126.88,17.19766698]
[1769269936720,1.47175555,126.92,126.89,1.43973811]
[1769269937317,1.47175555,126.92,126.88,1.43973811]
[1769269938236,1.47175555,126.92,126.89,1.43973811]
[1769269938835,1.47175555,126.91,126.88,1.43973811]
[1769269939544,1.47175555,126.9,126.88,1.43973811]
[1769269939721,1.47175555,126.9,126.87,1.63973811]
[1769269940249,1.47175555,126.9,126.87,3.76617109]
[1769269941556,1.47175555,126.9,126.87,1.63973811]
[1769269944855,1.47175555,126.9,126.87,1.43973811]
[1769269945960,1.47175555,126.92,126.89,1.43973811]
[1769269946739,89.8935789,126.94,126.9,1.43973811]
[1769269946941,93.49176743,126.94,126.9,1.43973811]
[1769269948361,3.59818853,126.93,126.9,1.43973811]
[1769269949857,1.47175555,126.92,126.89,1.43973811]
[1769269950157,1.47175555,126.91,126.88,1.43973811]
[1769269954169,1.47175555,126.91,126.89,1.47341305]
[1769269954569,1.40627642,126.92,126.89,1.47341305]
[1769269963375,3.53359839,126.93,126.89,1.47341305]
[1769269963580,1.40627642,126.93,126.9,1.47341305]
[1769269983385,1.46153426,126.91,126.88,23.65277723]
[1769269983688,1.46153426,126.91,126.87,9.26142404]
[1769269983986,1.46153426,126.91,126.87,14.6055126]
[1769269986572,1.46153426,126.91,126.88,1.37945844]
[1769269991798,1.46153426,126.91,126.87,16.80889613]
[1769269992170,1.46153426,126.91,126.88,1.45552]
[1769269993595,1.46153426,126.91,126.87,5.34408856]
[1769269993775,1.35638968,126.89,126.86,0.2]
[1769269993975,1.35638968,126.89,126.86,1.65552]
[1769269994894,1.35638968,126.89,126.86,3.78284197]
[1769269998997,1.35638968,126.89,126.87,2.12732197]
[1769270000582,1.35638968,126.91,126.88,1.45552]
[1769270000785,3.48371165,126.94,126.9,1.45552]
[1769270000992,1.35638968,126.93,126.91,1.45552]
[1769270001703,1.35638968,126.93,126.9,1.45552]
[1769270002409,1.35638968,126.93,126.91,1.45552]
[1769270002593,1.35638968,126.93,126.9,1.45552]
[1769270007387,1.35638968,126.93,126.9,3.58284197]
[1769270007589,1.35638968,126.93,126.91,1.45552]
[1769270014422,1.35638968,126.93,126.9,1.49066981]
[1769270014629,1.35944926,126.92,126.88,3.61799178]
[1769270015286,1.35944926,126.92,126.89,1.49066981]
[1769270027119,1.35944926,126.92,126.89,3.61831922]
[1769270031931,1.35944926,126.91,126.87,3.61831922]
[1769270032529,1.35944926,126.91,126.88,1.49066981]
[1769270034506,3.48709867,126.91,126.88,1.49066981]
[1769270034826,1.35944926,126.91,126.88,1.49066981]
[1769270037028,1.35944926,126.92,126.89,1.49066981]
[1769270038732,1.35944926,126.93,126.89,2.12764941]
[1769270038912,1.35944926,126.93,126.9,1.49066981]
[1769270040230,1.35944926,126.93,126.91,1.49066981]
[1769270040428,91.25302816,126.94,126.91,1.49066981]
[1769270041526,1.35944926,126.95,126.92,1.49066981]
[1769270043932,1.35944926,126.95,126.91,2.12764941]
[1769270044119,3.53797873,126.92,126.88,1.49064348]
[1769270044311,1.41032932,126.92,126.89,1.49064348]
[1769270051318,1.35770837,126.91,126.88,1.42358081]
[1769270059847,1.35770837,126.91,126.87,1.42358081]
[1769270066254,1.35770837,126.92,126.87,1.42358081]
[1769270066458,1.35770837,126.92,126.88,1.42358081]
[1769270066659,1.35770837,126.92,126.89,1.42358081]
[1769270067053,1.35770837,126.92,126.88,3.55123022]
[1769270070971,1.35770837,126.92,126.88,1.42358081]
[1769270072771,1.47534141,126.91,126.88,1.42358081]
[1769270084274,1.47534141,126.91,126.87,1.38511501]
[1769270086074,1.47534141,126.9,126.86,0.2]
[1769270086266,1.47534141,126.89,126.86,1.58511501]
[1769270091983,1.47534141,126.88,126.86,0.2]
[1769270093986,1.47534141,126.87,126.86,0.2]
[1769270094674,3.60323108,126.88,126.86,0.2]
[1769270095889,1.47534141,126.87,126.84,0.2]
[1769270096187,3.60323108,126.87,126.84,1.58511501]
[1769270096389,1.47534141,126.87,126.84,1.58511501]
[1769270096768,3.1101471,126.88,126.84,1.58511501]
[1769270107983,90.89313022,126.89,126.85,1.37625115]
[1769270108686,1.00088575,126.88,126.85,1.37625115]
[1769270111188,93.02627083,126.89,126.85,1.37625115]
[1769270111703,1.00607868,126.88,126.85,1.37625115]
[1769270112594,92.02146857,126.89,126.85,1.37625115]
[1769270112801,89.8935789,126.89,126.86,1.34889704]
[1769270113105,90.90091946,126.89,126.86,1.34889704]
[1769270121912,1.01803046,126.88,126.86,1.34889704]
[1769270125513,90.91602522,126.89,126.86,3.47678671]
[1769270125710,90.91602522,126.89,126.87,1.34889704]
[1769270125889,90.99685113,126.89,126.87,1.26807113]
[1769270126087,1.10327223,126.89,126.87,3.16964364]
[1769270126292,1.33136201,126.91,126.87,3.16964364]
[1769270126491,1.33136201,126.91,126.87,2.12788967]
[1769270128225,1.33136201,126.91,126.88,1.34889704]
[1769270138927,3.48045602,126.92,126.88,1.34889704]
[1769270139227,1.35256635,126.92,126.89,1.44052434]
[1769270141627,1.35256635,126.92,126.87,2.12788967]
[1769270141826,1.35256635,126.92,126.88,1.44052434]
[1769270144939,3.48038676,126.92,126.88,1.44052434]
[1769270147137,1.35256635,126.92,126.88,1.44052434]
[1769270150820,3.49624506,126.91,126.88,1.44052434]
[1769270151943,1.45659196,126.9,126.86,2.12782041]
[1769270153947,1.45659196,126.9,126.87,1.44052434]
[1769270155346,96.69425942,126.93,126.88,3.56834475]
[1769270155644,98.82207983,126.93,126.89,1.44052434]
[1769270157347,1.45659196,126.92,126.89,1.44052434]
[1769270157534,3.58441237,126.92,126.89,1.44052434]
[1769270157938,3.58441237,126.91,126.88,1.44052434]
[1769270162552,1.50261019,126.9,126.87,1.49380144]
[1769270165055,3.6304306,126.9,126.87,1.49380144]
[1769270174159,1.42874071,126.91,126.87,1.49380144]
[1769270174345,2.12782041,126.9,126.87,1.49380144]
[1769270174746,3.55656112,126.9,126.87,1.49380144]
[1769270175759,1.42874071,126.9,126.87,1.49380144]
[1769270177456,1.42874071,126.91,126.87,1.49380144]
[1769270178646,3.55656112,126.91,126.87,1.49380144]
[1769270179764,1.42874071,126.9,126.86,1.50940081]
[1769270179947,3.55656112,126.87,126.84,1.70940081]
[1769270180342,1.42874071,126.87,126.84,1.70940081]
[1769270180654,3.55656112,126.86,126.84,1.70940081]
[1769270180857,1.42874071,126.87,126.84,1.70940081]
[1769270181061,3.55656112,126.87,126.84,1.70940081]
[1769270185567,3.55656112,126.85,126.82,0.70940081]
[1769270185865,1.42874071,126.85,126.82,0.70940081]
[1769270187472,3.55656112,126.86,126.82,0.70940081]
[1769270195078,1.50645874,126.85,126.82,0.70940081]
[1769270195279,1.50645874,126.86,126.82,0.70940081]
[1769270200680,3.63427915,126.86,126.82,0.70940081]
[1769270200984,1.50645874,126.86,126.82,0.70940081]
[1769270201279,89.8935789,126.87,126.84,1.4311133]
[1769270201476,1.50645874,126.88,126.85,1.4311133]
[1769270201681,3.63427915,126.89,126.85,1.4311133]
[1769270202693,1.50645874,126.89,126.85,1.4311133]
[1769270202915,1.50645874,126.89,126.86,1.4311133]
[1769270214415,91.40003764,126.9,126.87,1.4311133]
[1769270214612,1.50645874,126.9,126.87,1.4311133]
[1769270215203,1.50645874,126.9,126.88,1.4311133]
[1769270215411,1.50645874,126.91,126.88,1.4311133]
[1769270217507,1.50645874,126.89,126.86,1.4311133]
[1769270217812,1.50645874,126.89,126.85,1.4311133]
[1769270217813,1.50645874,126.88,126.85,1.4311133]
[1769270225824,1.50645874,126.88,126.85,3.55951506]
[1769270229915,1.52005699,126.89,126.86,1.56968732]
[1769270242728,1.56718268,126.88,126.86,1.56968732]
[1769270245424,1.56718268,126.88,126.84,10.01233882]
[1769270245734,1.56718268,126.88,126.85,1.58128956]
[1769270246119,2.12840176,126.89,126.82,19.71214614]
[1769270246120,2.12840176,126.87,126.83,1.58128956]
[1769270246321,1.56718268,126.86,126.83,1.58128956]
[1769270252029,2.12840176,126.88,126.84,1.58128956]
[1769270252030,1.56718268,126.87,126.84,1.58128956]
[1769270256636,2.12840176,126.88,126.84,1.58128956]
[1769270256637,1.51863636,126.88,126.84,1.58128956]
[1769270288158,1.63257027,126.87,126.84,1.58128956]
[1769270297682,1.63257027,126.87,126.84,1.08128956]
[1769270299074,3.76144874,126.87,126.84,1.08128956]
[1769270299384,1.63257027,126.87,126.84,1.08128956]
[1769270313491,1.63257027,126.87,126.84,0.92928956]
[1769270317795,1.63077762,126.86,126.83,1.63712748]
[1769270324399,1.63077762,126.86,126.83,3.76600595]
[1769270324999,1.63077762,126.86,126.83,3.76616992]
[1769270326803,1.63077762,126.86,126.83,1.63712748]
[1769270346000,1.63077762,126.86,126.82,11.62305275]
[1769270346593,1.63077762,126.86,126.82,1.60882069]
[1769270346792,1.63077762,126.86,126.81,11.82361584]
[1769270347002,1.65572305,126.85,126.81,9.6945734]
[1769270347617,1.65572305,126.84,126.81,1.80882069]
[1769270347993,1.65572305,126.84,126.81,9.69461691]
[1769270350012,1.65572305,126.84,126.81,8.08579622]
[1769270351917,1.65572305,126.84,126.81,0.2]
[1769270352119,1.62940195,126.83,126.81,0.2]
[1769270352305,3.75844439,126.83,126.81,0.2]
[1769270352507,1.62940195,126.83,126.81,0.2]
[1769270353222,1.62940195,126.83,126.79,1.84796848]
[1769270354414,3.75844439,126.83,126.79,1.84796848]
[1769270354619,1.62940195,126.82,126.79,1.84796848]
[1769270362819,3.75844439,126.86,126.82,1.64796848]
[1769270363007,1.62940195,126.85,126.82,1.64796848]